bitfinex/quotes_SOLUSD_20250318
["timestamp","ask_amount","ask_price","bid_price","bid_amount"]
[1742281327032,0.03,124.6,124.59,32.03816547]
[1742281327352,0.03,124.6,124.59,177.12516547]
[1742281327856,0.03,124.6,124.59,195.77481433]
[1742281328024,0.03,124.6,124.59,177.12516547]
[1742281331127,0.03,124.6,124.59,195.77481433]
[1742281334454,0.03,124.62,124.61,18.64964886]
[1742281334759,0.03,124.62,124.61,50.68781433]
[1742281338463,0.03,124.62,124.6,137.977]
[1742281340260,1.6195,124.62,124.6,137.977]
[1742281340643,1.6195,124.62,124.6,138.04]
[1742281344051,1.6195,124.62,124.6,0.063]
[1742281345069,0.03,124.62,124.6,32.10116547]
[1742281345879,0.03,124.62,124.61,57.76781433]
[1742281346345,0.03,124.62,124.61,195.74481433]
[1742281348676,0.03,124.64,124.63,18.64964886]
[1742281348968,0.03,124.64,124.63,188.63481433]
[1742281350779,0.03,124.65,124.63,188.63481433]
[1742281350978,0.03,124.65,124.64,52.2914394]
[1742281351280,0.03,124.69,124.65,18.64964886]
[1742281351574,0.03,124.69,124.68,32.03816547]
[1742281351777,0.03,124.69,124.68,169.98516547]
[1742281355780,0.03,124.69,124.68,188.63481433]
[1742281356472,0.03,124.7,124.69,137.917]
[1742281356657,0.03,124.73,124.7,18.64964886]
[1742281356860,0.03,124.73,124.72,32.03816547]
[1742281357060,0.03,124.73,124.72,177.03516547]
[1742281357464,0.03,124.73,124.72,195.68481433]
[1742281357672,0.03,124.75,124.73,18.64964886]
[1742281357984,0.03,124.75,124.74,32.03816547]
[1742281358293,0.03,124.75,124.74,188.60481433]
[1742281360385,0.03,124.75,124.74,220.6429798]
[1742281360610,1.5593,124.81,124.74,220.6429798]
[1742281360779,1.5593,124.81,124.78,32.03816547]
[1742281361091,1.5593,124.81,124.78,144.997]
[1742281361791,33.59746547,124.81,124.78,144.997]
[1742281362286,33.59746547,124.81,124.78,7.08]
[1742281362666,33.59746547,124.81,124.76,177.03516547]
[1742281363289,32.03816547,124.8,124.76,137.917]
[1742281363489,32.03816547,124.79,124.74,359.717]
[1742281363886,32.03816547,124.78,124.74,366.797]
[1742281364895,32.03816547,124.77,124.74,7.08]
[1742281365094,6.5748,124.79,124.74,7.08]
[1742281365598,38.61296547,124.79,124.74,7.08]
[1742281365896,32.03816547,124.78,124.74,7.08]
[1742281366103,32.03816547,124.77,124.74,7.08]
[1742281366697,32.03816547,124.78,124.74,7.08]
[1742281367688,38.61296547,124.79,124.74,144.997]
[1742281367890,32.03816547,124.78,124.74,144.997]
[1742281368263,32.03816547,124.77,124.74,144.997]
[1742281369484,32.03816547,124.78,124.74,144.997]
[1742281370695,32.03816547,124.77,124.74,144.997]
[1742281371079,32.03816547,124.78,124.74,144.997]
[1742281372704,32.03816547,124.77,124.74,144.997]
[1742281372890,33.67186547,124.75,124.71,137.917]
[1742281373092,32.03816547,124.74,124.71,137.917]
[1742281373984,1.6337,124.75,124.71,137.917]
[1742281374191,1.6337,124.75,124.71,169.95516547]
[1742281374568,32.03816547,124.78,124.72,32.03816547]
[1742281374776,32.03816547,124.78,124.73,32.03816547]
[1742281374988,40.27146547,124.79,124.74,50.68781433]
[1742281375704,32.03816547,124.78,124.73,39.11816547]
[1742281375903,32.03816547,124.78,124.73,7.08]
[1742281376196,32.03816547,124.77,124.73,144.997]
[1742281377182,32.03816547,124.76,124.73,144.997]
[1742281377694,32.03816547,124.76,124.74,0.063]
[1742281378278,32.03816547,124.77,124.74,0.063]
[1742281379707,32.03816547,124.77,124.74,137.98]
[1742281380480,32.03816547,124.76,124.74,137.98]
[1742281380680,32.03816547,124.75,124.74,137.98]
[1742281380987,32.03816547,124.75,124.74,0.063]
[1742281381402,8.2633,124.79,124.74,0.063]
[1742281381580,32.03816547,124.75,124.74,0.063]
[1742281384403,41.64116547,124.75,124.74,0.063]
[1742281384597,33.62516547,124.75,124.74,0.063]
[1742281385201,41.64116547,124.75,124.74,0.063]
[1742281385400,39.90166547,124.75,124.74,0.063]
[1742281387411,32.03816547,124.76,124.74,0.063]
[1742281388219,32.03816547,124.76,124.74,138.163]
[1742281389106,32.03816547,124.77,124.74,138.163]
[1742281389408,32.03816547,124.77,124.74,0.063]
[1742281390522,0.03,124.79,124.74,0.063]
[1742281390693,32.03816547,124.78,124.74,138.163]
[1742281391519,0.03,124.75,124.74,138.163]
[1742281391713,0.03,124.75,124.74,188.85081433]
[1742281392218,0.03,124.75,124.74,156.81264886]
[1742281392412,0.03,124.75,124.74,138.163]
[1742281393619,0.03,124.79,124.76,18.64964886]
[1742281393817,0.03,124.79,124.76,195.83781433]
[1742281393995,0.03,124.79,124.77,32.03816547]
[1742281395631,0.03,124.79,124.78,18.64964886]
[1742281396518,0.03,124.79,124.76,177.18816547]
[1742281396727,0.03,124.79,124.76,145.15]
[1742281398598,0.03,124.79,124.76,177.18816547]
[1742281399100,0.03,124.79,124.77,50.68781433]
[1742281399326,0.03,124.79,124.78,50.68781433]
[1742281400306,0.03,124.79,124.77,32.03816547]
[1742281403112,0.03,124.79,124.77,170.10816547]
[1742281403406,0.03,124.79,124.78,18.64964886]
[1742281403713,0.03,124.79,124.78,50.68781433]
[1742281404919,0.03,124.79,124.78,188.75781433]
[1742281406412,0.03,124.79,124.78,156.71964886]
[1742281411025,0.03,124.81,124.8,18.64964886]
[1742281411227,0.03,124.81,124.8,156.68964886]
[1742281412533,0.03,124.81,124.8,138.04]
[1742281413438,0.03,124.81,124.8,145.1]
[1742281414432,0.03,124.81,124.8,163.74964886]
[1742281416442,0.03,124.81,124.8,195.78781433]
[1742281417828,0.03,124.81,124.8,145.1]
[1742281418435,0.03,124.81,124.8,163.74964886]
[1742281419243,0.03,124.81,124.8,195.78781433]
[1742281419443,0.03,124.81,124.8,163.74964886]
[1742281421323,0.03,124.81,124.8,145.1]
[1742281422124,0.03,124.81,124.8,138.04]
[1742281422319,32.06816547,124.81,124.8,138.04]
[1742281422915,32.06816547,124.81,124.79,0.063]
[1742281423721,32.03816547,124.8,124.79,0.063]
[1742281423921,33.57776547,124.8,124.79,0.063]
[1742281424334,1.5396,124.8,124.79,0.063]
[1742281424537,33.57776547,124.8,124.79,0.063]
[1742281425235,0.03,124.81,124.79,138.103]
[1742281426736,0.03,124.81,124.79,170.14116547]
[1742281427236,0.03,124.81,124.8,32.03816547]
[1742281427428,0.03,124.81,124.79,170.14116547]
[1742281428244,0.03,124.81,124.79,138.103]
[1742281428448,0.03,124.81,124.79,170.14116547]
[1742281428652,0.03,124.81,124.8,18.64964886]
[1742281428842,0.03,124.81,124.8,156.68964886]
[1742281429153,0.03,124.81,124.8,195.78781433]
[1742281429753,0.03,124.81,124.8,163.74964886]
[1742281430045,0.03,124.81,124.8,145.1]
[1742281431023,0.03,124.81,124.8,163.74964886]
[1742281431250,0.03,124.81,124.8,195.78781433]
[1742281432140,0.03,124.81,124.8,163.74964886]
[1742281433328,0.03,124.81,124.8,195.78781433]
[1742281433727,0.03,124.81,124.8,177.13816547]
[1742281434028,0.03,124.81,124.8,145.1]
[1742281435525,0.03,124.81,124.8,138.04]
[1742281437660,32.06816547,124.81,124.8,138.04]
[1742281438251,32.06816547,124.81,124.79,0.063]
[1742281438853,38.33336547,124.81,124.79,0.063]
[1742281439050,6.2952,124.81,124.79,0.063]
[1742281439230,38.33336547,124.81,124.79,0.063]
[1742281440043,6.2952,124.81,124.79,0.063]
[1742281440442,38.33336547,124.81,124.79,0.063]
[1742281441634,32.03816547,124.8,124.79,0.063]
[1742281442352,38.33336547,124.81,124.79,0.063]
[1742281443260,26.7425084,124.81,124.79,0.063]
[1742281443941,20.4473084,124.8,124.79,0.063]
[1742281444135,6.2952,124.81,124.79,0.063]
[1742281444337,0.03,124.81,124.79,0.063]
[1742281448455,0.03,124.81,124.79,20.5103084]
[1742281448842,0.03,124.81,124.79,158.5503084]
[1742281449258,0.03,124.86,124.81,138.01]
[1742281449459,0.03,124.86,124.82,27.5073084]
[1742281449653,28.11347929,124.88,124.85,20.4473084]
[1742281450260,10.67239431,124.88,124.85,138.01]
[1742281450559,10.67239431,124.88,124.85,158.4573084]
[1742281450867,10.67239431,124.88,124.86,20.4473084]
[1742281451169,20.4473084,124.9,124.85,138.01]
[1742281451357,0.03,124.91,124.85,158.4573084]
[1742281451555,0.03,124.88,124.86,7.06]
[1742281451748,0.03,124.88,124.86,165.5173084]
[1742281452065,0.03,124.88,124.86,145.07]
[1742281453142,0.03,124.88,124.87,31.89868888]
[1742281454361,0.03,124.88,124.87,188.55833774]
[1742281456150,0.03,124.91,124.9,156.62964886]
[1742281456447,0.03,124.91,124.9,145.04]
[1742281456844,0.03,124.91,124.9,7.06]
[1742281457049,0.03,124.91,124.88,137.98]
[1742281457456,0.03,124.91,124.88,169.87868888]
[1742281458069,0.03,124.91,124.89,31.89868888]
[1742281458565,0.03,124.91,124.88,137.98]
[1742281458766,0.03,124.91,124.88,145.04]
[1742281459174,0.03,124.91,124.88,176.93868888]
[1742281459465,0.03,124.91,124.9,18.64964886]
[1742281459662,0.03,124.91,124.9,50.54833774]
[1742281461869,0.03,124.91,124.9,188.52833774]
[1742281462062,0.03,124.94,124.93,18.64964886]
[1742281462275,0.03,124.94,124.93,26.10964886]
[1742281462474,0.03,124.94,124.93,7.46]
[1742281462773,0.03,124.94,124.93,145.41]
[1742281463579,31.92868888,124.94,124.92,137.95]
[1742281463781,31.89868888,124.93,124.92,137.95]
[1742281463949,33.50238888,124.93,124.92,137.95]
[1742281464455,1.6037,124.93,124.92,137.95]
[1742281465160,0.03,124.94,124.92,137.95]
[1742281465874,31.92868888,124.94,124.92,137.95]
[1742281466373,0.03,124.94,124.92,137.95]
[1742281468576,0.03,124.94,124.92,145.41]
[1742281470659,0.03,124.94,124.92,177.30868888]
[1742281470969,0.03,124.94,124.93,31.89868888]
[1742281471366,0.03,124.94,124.93,169.84868888]
[1742281471673,0.03,124.94,124.93,137.95]
[1742281473779,0.03,124.94,124.93,169.84868888]
[1742281474171,0.03,124.94,124.93,137.95]
[1742281475267,31.92868888,124.94,124.9,359.35]
[1742281475462,0.03,124.94,124.9,359.35]
[1742281475683,31.92868888,124.94,124.9,359.35]
[1742281475884,0.03,124.94,124.91,31.89868888]
[1742281476179,0.03,124.94,124.93,31.89868888]
[1742281476385,0.03,124.94,124.93,169.84868888]
[1742281476772,0.03,124.94,124.93,137.95]
[1742281477284,0.03,124.94,124.93,177.34868888]
[1742281477882,1.6069,124.99,124.95,137.92]
[1742281478178,31.92868888,125.01,124.96,31.89868888]
[1742281478384,0.03,125.01,124.97,31.89868888]
[1742281478587,0.03,125.01,124.98,31.89868888]
[1742281478758,0.03,125.01,124.98,169.81868888]
[1742281479180,0.03,125.01,125.0,31.89868888]
[1742281479371,0.03,125.01,125.0,169.81868888]
[1742281479567,0.03,125.01,125.0,137.92]
[1742281479774,0.03,125.01,125.0,137.42]
[1742281481276,0.03,125.01,125.0,169.31868888]
[1742281481484,0.03,125.01,125.0,187.96833774]
[1742281482671,0.03,125.01,125.0,169.31868888]
[1742281482874,0.03,125.01,125.0,137.42]
[1742281483790,0.03,125.01,125.0,169.31868888]
[1742281484189,0.03,125.01,125.0,137.42]
[1742281484488,33.54598888,125.06,125.01,137.39]
[1742281484685,31.89868888,125.05,125.01,137.39]
[1742281484878,1.6473,125.06,125.01,137.39]
[1742281485078,31.89868888,125.05,125.01,137.39]
[1742281485987,33.54598888,125.06,125.01,169.28868888]
[1742281486287,33.54598888,125.06,125.01,137.39]
[1742281486288,1.6473,125.06,125.01,137.39]
[1742281486488,1.6473,125.06,125.01,169.28868888]
[1742281486687,33.54598888,125.06,125.01,137.39]
[1742281487095,33.54598888,125.06,125.01,169.28868888]
[1742281487683,1.6473,125.06,125.01,176.80868888]
[1742281487986,0.03,125.07,125.02,31.89868888]
[1742281488190,0.03,125.07,125.03,31.89868888]
[1742281488489,0.03,125.07,125.02,137.39]
[1742281488490,0.03,125.07,125.04,31.89868888]
[1742281488793,0.03,125.07,125.04,169.28868888]
[1742281489094,0.03,125.07,125.04,137.39]
[1742281489276,31.92868888,125.07,125.04,137.39]
[1742281489886,31.89868888,125.05,125.01,137.39]
[1742281490110,31.89868888,125.04,125.01,137.39]
[1742281490283,0.03,125.07,125.01,137.39]
[1742281490598,31.89868888,125.04,125.01,137.39]
[1742281490894,31.89868888,125.02,125.01,137.39]
[1742281491390,31.89868888,125.03,125.01,137.39]
[1742281491597,31.89868888,125.02,125.01,137.39]
[1742281492597,9.1819,125.04,125.01,137.39]
[1742281492783,31.89868888,125.03,125.01,137.39]
[1742281492982,41.08058888,125.04,125.01,137.39]
[1742281493491,31.89868888,125.03,125.01,137.39]
[1742281493991,31.89868888,125.03,124.98,358.75]
[1742281494196,31.89868888,125.02,124.98,358.75]
[1742281494380,31.89868888,125.02,124.98,137.39]
[1742281495289,41.08058888,125.04,124.99,18.64964886]
[1742281495496,1.5819,125.04,125.0,31.89868888]
[1742281495979,1.5819,125.04,124.99,50.54833774]
[1742281496397,1.5819,125.04,124.98,169.28868888]
[1742281496699,33.48058888,125.04,124.99,31.89868888]
[1742281497695,1.5819,125.04,124.99,31.89868888]
[1742281497879,33.48058888,125.04,124.99,31.89868888]
[1742281498396,1.5819,125.04,124.99,31.89868888]
[1742281498593,33.48058888,125.04,124.99,31.89868888]
[1742281498779,33.48058888,125.04,124.98,169.28868888]
[1742281499189,1.5819,125.04,124.98,137.39]
[1742281499495,1.5819,125.04,124.98,169.28868888]
[1742281499891,31.89868888,125.03,124.98,169.28868888]
[1742281500095,1.5819,125.04,124.98,169.28868888]
[1742281500282,1.5819,125.04,124.98,137.39]
[1742281500283,31.89868888,125.03,124.98,137.39]
[1742281500481,31.89868888,125.02,124.98,137.39]
[1742281500796,31.89868888,124.99,124.98,137.39]
[1742281502099,39.45868888,125.02,124.98,137.39]
[1742281502280,31.89868888,125.0,124.98,137.39]
[1742281502475,31.89868888,124.99,124.98,137.39]
[1742281502682,31.89868888,124.99,124.94,137.39]
[1742281503005,33.44418888,124.98,124.94,137.39]
[1742281503311,31.89868888,124.97,124.94,137.39]
[1742281503685,1.5455,124.98,124.94,137.39]
[1742281503892,1.5455,124.98,124.94,169.28868888]
[1742281504090,1.5455,124.98,124.94,137.39]
[1742281504695,33.44418888,124.98,124.94,137.39]
[1742281504896,31.89868888,124.97,124.94,137.39]
[1742281505302,1.5455,124.98,124.94,137.39]
[1742281505487,33.44418888,124.98,124.94,137.39]
[1742281505885,1.5455,124.98,124.94,137.39]
[1742281506298,33.44418888,124.98,124.94,137.39]
[1742281507400,31.89868888,124.97,124.94,137.39]
[1742281507610,31.89868888,124.95,124.92,137.39]
[1742281507911,31.89868888,124.93,124.91,137.453]
[1742281508217,17.1071,124.98,124.91,137.453]
[1742281508585,31.89868888,124.94,124.91,137.453]
[1742281508788,9.1055,124.98,124.91,137.453]
[1742281508983,31.89868888,124.94,124.91,137.453]
[1742281509883,31.89868888,124.92,124.91,137.453]
[1742281510084,33.42078888,124.92,124.91,0.063]
[1742281510515,7.58,124.95,124.91,0.063]
[1742281510715,31.89868888,124.94,124.91,0.063]
[1742281511481,31.89868888,124.92,124.91,0.063]
[1742281512403,31.89868888,124.95,124.91,137.453]
[1742281512904,8.0094,124.96,124.91,137.453]
[1742281513322,31.89868888,124.95,124.91,137.453]
[1742281513702,8.0094,124.96,124.91,137.453]
[1742281513902,31.89868888,124.95,124.91,137.453]
[1742281514209,15.3728,125.0,124.93,31.89868888]
[1742281514405,31.89868888,124.99,124.94,31.89868888]
[1742281514618,15.3728,125.0,124.94,31.89868888]
[1742281514832,1.5388,125.0,124.96,31.89868888]
[1742281515123,14.1321,125.03,124.96,169.28868888]
[1742281515303,9.129,125.03,124.98,31.89868888]
[1742281515502,31.89868888,125.04,124.98,169.28868888]
[1742281515696,31.89868888,125.04,124.99,31.89868888]
[1742281515902,7.6,125.05,125.0,31.89868888]
[1742281516207,31.89868888,125.04,124.99,137.39]
[1742281516806,7.6,125.05,124.99,169.28868888]
[1742281517019,8.1694,125.06,125.0,31.89868888]
[1742281517310,40.06808888,125.06,125.0,31.89868888]
[1742281517499,40.06808888,125.06,125.01,31.89868888]
[1742281517704,8.1694,125.06,125.0,31.89868888]
[1742281517901,40.06808888,125.06,125.01,31.89868888]
[1742281518411,8.1694,125.06,125.01,31.89868888]
[1742281518611,31.89868888,125.05,124.99,137.39]
[1742281518794,16.1655,125.06,124.99,137.39]
[1742281519000,31.89868888,125.03,124.99,137.39]
[1742281519222,16.1655,125.06,124.99,169.28868888]
[1742281519422,31.89868888,125.04,124.99,169.28868888]
[1742281519603,31.89868888,125.04,124.98,31.89868888]
[1742281519810,31.89868888,125.02,124.97,31.89868888]
[1742281520413,31.89868888,125.03,124.97,31.89868888]
[1742281520609,31.89868888,125.02,124.96,31.89868888]
[1742281520827,31.89868888,125.02,124.96,169.28868888]
[1742281521206,31.89868888,125.03,124.98,31.89868888]
[1742281521401,31.89868888,125.02,124.96,137.39]
[1742281521621,31.89868888,124.98,124.95,137.39]
[1742281521819,31.89868888,125.02,124.95,137.39]
[1742281521820,31.89868888,124.97,124.95,137.39]
[1742281522014,31.89868888,124.96,124.91,137.453]
[1742281522216,31.89868888,124.92,124.91,0.063]
[1742281522605,31.89868888,124.93,124.91,0.063]
[1742281522924,31.89868888,124.92,124.91,0.063]
[1742281525027,39.90378888,124.92,124.91,0.063]
[1742281525828,20.0,124.89,124.83,137.39]
[1742281526029,31.89868888,124.87,124.83,137.39]
[1742281526411,39.53868888,124.88,124.83,137.39]
[1742281526808,39.53868888,124.88,124.83,169.28868888]
[1742281527024,39.53868888,124.88,124.83,137.39]
[1742281527232,58.70605347,124.88,124.83,137.39]
[1742281527430,58.70605347,124.88,124.83,188.45605347]
[1742281528217,58.70605347,124.88,124.83,137.39]
[1742281528431,51.06605347,124.87,124.83,137.39]
[1742281528635,51.06605347,124.86,124.83,137.39]
[1742281528838,51.06605347,124.86,124.81,137.453]
[1742281529015,51.06605347,124.86,124.81,0.063]
[1742281529214,51.06605347,124.85,124.81,0.063]
[1742281529528,51.06605347,124.86,124.81,0.063]
[1742281529736,51.06605347,124.86,124.81,51.12905347]
[1742281530744,51.06605347,124.86,124.81,137.453]
[1742281531034,51.06605347,124.86,124.81,188.51905347]
[1742281531223,102.3095,124.95,124.85,51.06605347]
[1742281531532,51.06605347,124.91,124.86,51.06605347]
[1742281532112,51.06605347,124.91,124.86,188.45605347]
[1742281532850,7.64,124.92,124.87,51.06605347]
[1742281533021,58.70605347,124.92,124.87,51.06605347]
[1742281533222,7.64,124.92,124.87,51.06605347]
[1742281533416,58.70605347,124.92,124.87,51.06605347]
[1742281534029,7.64,124.92,124.87,51.06605347]
[1742281534345,58.70605347,124.92,124.86,188.45605347]
[1742281534917,51.06605347,124.92,124.87,51.06605347]
[1742281535134,7.62,124.92,124.88,51.06605347]
[1742281535337,7.62,124.92,124.87,51.06605347]
[1742281535538,7.62,124.92,124.88,51.06605347]
[1742281536040,58.68605347,124.92,124.87,51.06605347]
[1742281536538,51.06605347,124.91,124.86,188.45605347]
[1742281536739,7.62,124.92,124.82,139.041]
[1742281536740,15.6251,124.92,124.82,139.041]
[1742281536939,51.06605347,124.9,124.85,51.06605347]
[1742281537121,51.06605347,124.9,124.85,188.45605347]
[1742281538142,58.68605347,124.92,124.86,51.06605347]
[1742281538320,58.68605347,124.92,124.87,51.06605347]
[1742281538738,58.71605347,124.92,124.87,51.06605347]
[1742281538951,7.65,124.92,124.87,51.06605347]
[1742281539156,58.71605347,124.92,124.85,137.453]
[1742281539327,7.65,124.92,124.86,51.06605347]
[1742281539653,51.06605347,124.87,124.85,137.453]
[1742281539818,51.06605347,124.87,124.85,0.063]
[1742281540019,58.66605347,124.88,124.85,0.063]
[1742281540239,7.6,124.88,124.85,0.063]
[1742281540648,58.66605347,124.88,124.85,0.063]
[1742281541558,51.06605347,124.86,124.85,0.063]
[1742281543345,59.07495347,124.86,124.85,0.063]
[1742281543535,51.06605347,124.86,124.85,0.063]
[1742281543739,18.67964886,124.92,124.85,51.12905347]
[1742281544045,66.67175347,124.91,124.86,51.06605347]
[1742281544224,66.67175347,124.91,124.85,188.51905347]
[1742281544534,15.6057,124.91,124.85,188.51905347]
[1742281544735,51.06605347,124.9,124.85,137.453]
[1742281544937,51.06605347,124.88,124.85,137.453]
[1742281545139,15.6057,124.91,124.85,137.453]
[1742281545140,51.06605347,124.87,124.85,0.063]
[1742281545448,59.07445347,124.87,124.85,0.063]
[1742281546250,66.67445347,124.87,124.85,0.063]
[1742281547159,7.6,124.87,124.85,0.063]
[1742281547531,8.0073,124.89,124.85,0.063]
[1742281547862,7.6,124.9,124.85,188.51905347]
[1742281548027,66.67205347,124.91,124.85,188.51905347]
[1742281548354,51.06605347,124.9,124.85,188.51905347]
[1742281548523,58.66605347,124.91,124.85,188.51905347]
[1742281548727,7.6,124.91,124.87,51.06605347]
[1742281549461,7.6,124.91,124.87,188.45605347]
[1742281549661,58.66605347,124.91,124.87,137.39]
[1742281550661,7.6,124.91,124.87,137.39]
[1742281551123,7.6,124.91,124.87,188.45605347]
[1742281551323,7.6,124.91,124.87,137.39]
[1742281552250,7.63,124.91,124.87,137.39]
[1742281552548,7.63,124.91,124.87,188.45605347]
[1742281553453,7.63,124.91,124.88,51.06605347]
[1742281553639,0.03,124.91,124.88,188.45605347]
[1742281554156,0.03,124.91,124.9,51.06605347]
[1742281558569,0.03,124.91,124.9,188.45605347]
[1742281559368,0.03,124.91,124.9,207.10570233]
[1742281559738,0.03,124.91,124.9,213.11490233]
[1742281560252,0.03,124.92,124.91,156.00964886]
[1742281560560,0.03,124.92,124.91,214.61570233]
[1742281561132,0.03,124.92,124.91,144.9]
[1742281561347,0.03,124.92,124.91,195.96605347]
[1742281561547,0.03,124.92,124.91,188.42605347]
[1742281561747,0.03,124.92,124.91,207.07570233]
[1742281562456,0.03,124.92,124.91,188.42605347]
[1742281563291,0.03,124.92,124.91,137.36]
[1742281563629,51.09605347,124.92,124.91,137.36]
[1742281563836,51.09605347,124.92,124.87,137.36]
[1742281564346,0.03,124.92,124.87,188.42605347]
[1742281564550,51.09605347,124.92,124.87,188.42605347]
[1742281564849,51.06605347,124.91,124.87,137.36]
[1742281565051,0.03,124.92,124.87,137.36]
[1742281565234,0.03,124.92,124.91,0.063]
[1742281565651,51.09605347,124.92,124.91,0.063]
[1742281566363,0.03,124.92,124.91,0.063]
[1742281566543,0.03,124.92,124.91,51.12905347]
[1742281566750,0.03,124.92,124.91,0.063]
[1742281566946,0.03,124.92,124.91,137.423]
[1742281567154,0.03,124.92,124.91,188.48905347]
[1742281567574,0.03,124.92,124.91,137.423]
[1742281569173,0.03,124.92,124.91,0.063]
[1742281569366,51.09605347,124.92,124.91,0.063]
[1742281569676,0.03,124.92,124.91,0.063]
[1742281569873,51.09605347,124.92,124.91,0.063]
[1742281570258,0.03,124.92,124.91,0.063]
[1742281570802,51.09605347,124.92,124.91,0.063]
[1742281570960,0.03,124.92,124.91,0.063]
[1742281571170,0.03,124.92,124.91,188.48905347]
[1742281572067,0.03,124.92,124.91,207.13870233]
[1742281572774,0.03,124.92,124.91,188.48905347]
[1742281572957,0.03,124.92,124.91,207.13870233]
[1742281573561,58.82065347,125.0,124.93,137.33]
[1742281573761,58.82065347,125.0,124.95,51.06605347]
[1742281574768,58.82065347,125.0,124.95,188.39605347]
[1742281574964,58.82065347,125.0,124.95,137.33]
[1742281574965,51.06605347,124.97,124.95,137.33]
[1742281575170,51.06605347,124.97,124.92,188.39605347]
[1742281575570,35.7546,125.0,124.92,188.39605347]
[1742281575967,51.06605347,124.97,124.92,188.39605347]
[1742281576154,35.7546,125.0,124.92,188.39605347]
[1742281576472,51.06605347,124.97,124.92,188.39605347]
[1742281576676,8.0018,124.98,124.92,188.39605347]
[1742281577177,51.06605347,124.97,124.92,188.39605347]
[1742281577999,8.0018,124.98,124.92,188.39605347]
[1742281578361,51.06605347,124.98,124.93,51.06605347]
[1742281578556,8.0008,124.99,124.92,188.39605347]
[1742281578862,51.06605347,124.98,124.92,188.39605347]
[1742281579092,51.06605347,124.98,124.93,51.06605347]
[1742281579263,51.06605347,124.98,124.92,188.39605347]
[1742281579463,28.0024,124.99,124.92,137.33]
[1742281579755,51.06605347,124.96,124.92,137.33]
[1742281580476,51.06605347,124.95,124.91,0.063]
[1742281580684,51.06605347,124.94,124.91,0.063]
[1742281580873,51.06605347,124.95,124.91,137.393]
[1742281581261,59.06855347,124.96,124.91,137.393]
[1742281581462,58.60605347,124.97,124.91,188.45905347]
[1742281581662,58.60605347,124.97,124.92,51.06605347]
[1742281582058,7.54,124.97,124.92,51.06605347]
[1742281582263,7.54,124.97,124.93,51.06605347]
[1742281582872,7.54,124.97,124.91,144.933]
[1742281583075,7.54,124.97,124.94,51.06605347]
[1742281583266,1.6235,125.0,124.95,51.06605347]
[1742281583584,1.6235,125.0,124.96,51.06605347]
[1742281583881,0.03,125.0,124.97,51.06605347]
[1742281584477,0.03,125.0,124.95,137.33]
[1742281584683,51.09605347,125.0,124.95,137.33]
[1742281584869,51.09605347,125.0,124.95,188.39605347]
[1742281585382,51.06605347,124.99,124.95,137.33]
[1742281585989,0.03,125.0,124.95,188.39605347]
[1742281586286,51.09605347,125.0,124.95,188.39605347]
[1742281586490,0.03,125.0,124.95,188.39605347]
[1742281586691,0.03,125.0,124.96,51.06605347]
[1742281586993,51.06605347,125.02,125.0,4.97]
[1742281587987,1.5302,125.04,125.0,4.97]
[1742281588189,51.06605347,125.03,125.0,4.97]
[1742281588496,51.06605347,125.01,125.0,4.97]
[1742281588868,7.52,125.02,125.0,4.97]
[1742281589072,51.06605347,125.01,125.0,4.97]
[1742281590091,7.9993,125.01,125.0,4.97]
[1742281590277,59.06535347,125.01,125.0,4.97]
[1742281591501,59.09535347,125.01,125.0,4.97]